bitfinex/quotes_ETHUSD_20241105
["timestamp","ask_amount","ask_price","bid_price","bid_amount"]
[1730839116705,1.71750092,2435.6,2435.4,4.10609]
[1730839117501,0.05525272,2435.5,2435.4,4.10609]
[1730839118703,0.05525272,2435.5,2435.3,8.2125]
[1730839118901,0.05525272,2435.5,2435.4,4.1061]
[1730839119115,0.05525272,2435.5,2435.2,4.9195]
[1730839119264,0.05525272,2435.5,2435.1,8.213]
[1730839119265,0.31486808,2435.5,2435.1,8.213]
[1730839119467,0.31486808,2435.5,2435.1,4.10649]
[1730839119761,0.05525272,2435.5,2434.9,3.794]
[1730839120023,0.05525272,2435.5,2435.4,4.1061]
[1730839120162,4.92878,2435.9,2435.4,4.18821385]
[1730839120364,0.8234,2435.9,2435.5,4.92891]
[1730839120563,0.8234,2435.9,2435.5,9.03475]
[1730839120910,4.92866,2435.9,2435.5,4.10584]
[1730839121061,0.05584617,2435.8,2435.5,4.10584]
[1730839121461,4.1056,2435.7,2435.3,0.823]
[1730839121697,0.05559557,2435.6,2435.1,9.03598]
[1730839121925,4.1056,2435.7,2435.2,4.10633]
[1730839122411,0.05577213,2435.6,2435.5,7.92123]
[1730839122564,0.05577213,2435.6,2435.5,12.29396561]
[1730839122901,4.10383,2436.8,2436.2,4.10473]
[1730839123211,4.10334,2437.1,2436.5,0.7742]
[1730839123392,0.05326632,2436.7,2436.5,4.87832]
[1730839123702,4.85412,2437.2,2436.5,0.7742]
[1730839123703,0.05317093,2436.6,2436.5,0.7742]
[1730839123862,4.10344,2437.0,2436.3,4.10448]
[1730839124061,0.46332588,2436.9,2436.3,4.10448]
[1730839124476,4.10374,2436.8,2436.3,4.10448]
[1730839124685,0.05279111,2436.7,2436.3,4.10447]
[1730839124888,4.513944,2436.9,2436.3,4.10447]
[1730839125086,4.513944,2436.9,2436.5,4.10414]
[1730839125087,0.05300556,2436.8,2436.5,4.10414]
[1730839125318,0.05300556,2436.8,2436.1,0.7742]
[1730839125319,0.05300556,2436.8,2436.3,8.20891]
[1730839125526,0.05300556,2436.8,2436.3,8.2089]
[1730839125816,4.10358,2436.9,2436.4,4.10432]
[1730839125974,0.05291017,2436.7,2436.3,4.10441]
[1730839126175,0.05304495,2436.8,2436.1,4.879]
[1730839126487,4.10416,2436.6,2436.1,4.879]
[1730839126819,0.0529112,2436.5,2436.1,4.879]
[1730839128328,0.0529112,2436.5,2436.1,0.7742]
[1730839128496,0.54598832,2436.5,2436.1,4.10483]
[1730839128822,4.65024832,2436.5,2435.9,8.21035]
[1730839129033,4.65024832,2436.5,2436.0,4.10506]
[1730839129331,0.0529112,2436.5,2436.3,4.1045]
[1730839129479,0.0529112,2436.5,2436.3,4.10445]
[1730839129684,0.7737,2436.7,2436.3,4.10445]
[1730839129921,0.05321128,2436.6,2436.3,4.10445]
[1730839130511,0.05321128,2436.6,2436.4,4.10439]
[1730839130902,0.05321128,2436.6,2436.2,4.10458]
[1730839131430,0.05321128,2436.6,2436.3,4.10452]
[1730839132134,0.05321128,2436.6,2436.4,4.1044]
[1730839134125,0.05321128,2436.6,2436.4,4.1043]
[1730839134534,0.05321128,2436.6,2436.5,4.10424]
[1730839134887,0.7868,2437.0,2436.5,4.10424]
[1730839135085,0.05376351,2436.9,2436.5,4.10424]
[1730839137241,0.05376351,2436.9,2436.3,4.52897585]
[1730839137443,0.05376351,2436.9,2436.7,4.10382]
[1730839137735,0.7566,2437.4,2436.9,4.10345]
[1730839138032,4.9185554,2437.8,2437.2,4.10298]
[1730839138850,4.9185554,2437.8,2437.2,4.10297]
[1730839138995,4.10222,2437.7,2437.2,4.10297]
[1730839139196,4.15666932,2437.7,2437.2,4.10297]
[1730839139711,8.25904932,2437.7,2437.2,4.10297]
[1730839139898,4.15666932,2437.7,2437.0,4.10328]
[1730839140096,4.15666932,2437.7,2436.9,4.10357]
[1730839140097,4.10256,2437.5,2436.9,4.10357]
[1730839140456,4.10256,2437.5,2436.8,4.92281]
[1730839140457,4.10303,2437.3,2436.8,4.92281]
[1730839140814,0.05414482,2437.2,2436.8,4.92281]
[1730839141331,0.05401873,2437.1,2436.8,4.92275]
[1730839141497,0.05401873,2437.1,2436.8,9.02639]
[1730839141690,4.10273,2437.4,2436.8,9.929029]
[1730839141893,0.05408095,2437.3,2436.8,9.02639]
[1730839142094,0.05408095,2437.3,2436.9,4.10357]
[1730839142658,4.15698095,2437.3,2436.8,4.92274]
[1730839142802,4.15698095,2437.3,2436.9,4.10353]
[1730839143001,0.05408095,2437.3,2437.0,4.10338]
[1730839143513,0.0538631,2437.2,2437.1,4.1032]
[1730839143693,4.9453354,2437.8,2437.4,4.10271]
[1730839143694,0.8431954,2437.8,2437.4,4.10271]
[1730839143899,0.05316941,2437.7,2437.4,8.20535]
[1730839144241,0.0598954,2437.8,2437.5,4.10256]
[1730839144746,0.05224719,2437.7,2437.5,4.10256]
[1730839145095,0.0598954,2437.8,2437.5,4.10256]
[1730839145340,0.05224719,2437.7,2437.3,0.7597]
[1730839145567,4.15454719,2437.7,2437.3,0.7597]
[1730839145708,4.10241,2437.6,2437.3,0.7597]
[1730839146042,0.05224603,2437.5,2437.3,0.7597]
[1730839146393,4.10223,2437.7,2437.3,0.7597]
[1730839146625,4.15492966,2437.4,2437.0,0.7591]
[1730839146831,4.10258,2437.5,2437.0,6.41154515]
[1730839147008,0.0525865,2437.3,2437.0,5.21492515]
[1730839147198,0.05191805,2437.4,2437.0,4.86239]
[1730839147395,0.8046,2437.6,2436.8,4.1036]
[1730839147396,0.05241627,2437.2,2436.8,4.1036]
[1730839147729,0.05229017,2437.1,2436.9,0.35258607]
[1730839148042,4.10291,2437.3,2436.8,4.1036]
[1730839148239,4.10266,2437.5,2436.9,4.10357]
[1730839148240,0.05212942,2437.0,2436.9,4.10357]
[1730839148445,0.05212942,2437.0,2436.8,4.96795759]
[1730839148446,4.10266,2437.5,2437.0,4.1033]
[1730839148625,4.10266,2437.5,2436.9,4.18562775]
[1730839148948,4.10266,2437.5,2437.0,4.10339]
[1730839148949,0.0526338,2437.4,2437.0,4.10339]
[1730839152119,0.0526338,2437.4,2436.9,4.10357]
[1730839152435,0.0526338,2437.4,2437.0,4.45660901]
[1730839152617,0.0526338,2437.4,2437.1,4.45643901]
[1730839152817,0.0526338,2437.4,2437.2,0.35314142]
[1730839153016,4.9071,2437.6,2437.1,4.10311]
[1730839153232,0.05228701,2437.3,2437.2,0.35308807]
[1730839155749,4.1029,2437.3,2437.2,0.35300198]
[1730839156059,4.10256,2437.5,2437.2,0.35300198]
[1730839156264,0.0598954,2437.8,2437.2,0.35300198]
[1730839156265,4.9493754,2437.8,2437.2,1.14880198]
[1730839156431,9.0515454,2437.8,2437.3,4.1028]
[1730839156633,0.05278662,2437.7,2437.3,4.1028]
[1730839156946,4.9493654,2437.8,2437.3,4.1028]
[1730839157376,4.9493654,2437.8,2437.5,4.10246]
[1730839157377,0.0598954,2437.8,2437.5,4.10246]
[1730839157670,0.0598954,2437.8,2437.6,0.8066831]
[1730839157828,0.0598954,2437.8,2437.6,0.4537527]
[1730839160171,0.0598954,2437.8,2437.3,4.10277]
[1730839160172,4.1620354,2437.8,2437.3,4.10277]
[1730839160317,4.1620354,2437.8,2437.4,0.35314587]
[1730839160517,4.1620354,2437.8,2437.3,4.10277]
[1730839160749,4.10224,2437.7,2437.3,4.10277]
[1730839160946,4.10224,2437.7,2437.4,0.35313591]
[1730839161274,4.10224,2437.7,2436.9,4.10348]
[1730839161275,4.10274,2437.4,2436.9,4.10348]
[1730839161487,1.61160954,2437.7,2436.9,4.10348]
[1730839161488,4.10257,2437.5,2436.9,4.10348]
[1730839161767,4.10239,2437.6,2437.0,1.16352398]
[1730839162059,4.10239,2437.6,2437.1,4.45644398]
[1730839162223,8.20489,2437.6,2437.1,4.10312]
[1730839162418,0.90499854,2437.6,2437.0,0.8102]
[1730839162733,0.90499854,2437.6,2436.8,4.10364]
[1730839162734,4.10285,2437.4,2436.8,4.86864]
[1730839162918,4.10285,2437.4,2436.9,0.35362095]
[1730839163121,4.10285,2437.4,2436.8,8.9723]
[1730839163122,4.10285,2437.4,2437.0,0.35362095]
[1730839163487,4.10285,2437.4,2436.9,4.10356]
[1730839163620,4.10285,2437.4,2437.0,0.35381479]
[1730839163946,4.10285,2437.4,2436.9,4.10356]
[1730839164145,4.88755,2437.7,2437.1,4.10321]
[1730839164449,4.10239,2437.6,2437.1,4.10321]
[1730839164645,4.10239,2437.6,2437.0,4.10332]
[1730839164646,4.10273,2437.4,2437.0,4.10332]
[1730839165034,4.10273,2437.4,2437.1,0.35409246]
[1730839165233,0.7852,2437.7,2437.2,0.08205763]
[1730839165520,4.1620154,2437.8,2437.2,0.08205763]
[1730839165521,4.1620154,2437.8,2437.3,4.87807]
[1730839165949,0.0598954,2437.8,2437.6,4.10235]
[1730839166260,0.0598954,2437.8,2437.5,4.18459946]
[1730839166457,0.0598954,2437.8,2437.5,4.10256]
[1730839166658,0.0598954,2437.8,2437.6,0.44563571]
[1730839168122,0.0598954,2437.8,2437.3,4.87808]
[1730839168123,4.1619854,2437.8,2437.3,4.87808]
[1730839168332,4.1619854,2437.8,2437.4,0.35389926]
[1730839168536,4.1619854,2437.8,2437.5,0.35389926]
[1730839168822,4.1619854,2437.8,2437.3,4.87808]
[1730839168823,0.0598954,2437.8,2437.4,4.10272]
[1730839169034,0.0598954,2437.8,2437.5,0.35389577]
[1730839169229,0.0598954,2437.8,2437.5,0.54950917]
[1730839169518,0.0598954,2437.8,2437.7,4.90972]
[1730839169864,0.0598954,2437.8,2437.7,5.26354628]
[1730839171361,0.0598954,2437.8,2437.7,8.81293511]
[1730839173372,5.37479284,2438.8,2438.3,4.10111]
[1730839174136,5.37479284,2438.8,2438.3,4.183126]
[1730839174333,5.37479284,2438.8,2438.3,5.0917326]
[1730839174573,5.37479284,2438.8,2438.3,0.9086066]
[1730839174860,4.10064,2438.7,2438.2,4.90288]
[1730839175697,4.10064,2438.7,2438.2,0.8015]
[1730839175874,4.10075,2438.6,2438.2,0.8015]
[1730839176165,4.10064,2438.7,2438.2,4.90285]
[1730839179464,4.10072,2438.6,2438.2,0.8015]
[1730839179631,5.37496284,2438.7,2438.2,0.8015]
[1730839179834,5.37496284,2438.7,2438.2,4.90286]
[1730839180037,4.10071,2438.6,2438.2,4.90286]
[1730839180269,1.27432284,2438.9,2438.7,4.10042]
[1730839180433,1.27432284,2438.9,2438.5,4.10073]
[1730839180631,1.75905449,2439.0,2438.5,8.20151]
[1730839180872,0.0598954,2439.0,2438.6,0.820151]
[1730839181273,4.1599554,2439.0,2438.6,0.820151]
[1730839181512,4.10032,2438.9,2438.3,4.10109]
[1730839181714,4.10041,2438.8,2438.3,4.10109]
[1730839181870,4.93035,2438.7,2438.2,5.393146]
[1730839182507,0.8298,2438.7,2438.3,4.1012]
[1730839182809,0.8298,2438.7,2438.2,5.393146]
[1730839183323,0.8298,2438.7,2438.2,9.494396]
[1730839183506,4.93035,2438.7,2438.2,5.393036]
[1730839184537,4.93035,2438.7,2438.2,9.494336]
[1730839185323,0.8298,2438.7,2438.3,4.10119]
[1730839185896,4.10089,2438.5,2438.2,0.490286]
[1730839186094,4.10071,2438.6,2438.0,4.9176]
[1730839186301,4.10071,2438.6,2438.1,4.10146]
[1730839186736,8.20156,2438.6,2438.1,4.10146]
[1730839186896,4.10071,2438.6,2438.1,4.10146]
[1730839188101,8.20155,2438.6,2438.1,4.10146]
[1730839189865,8.20155,2438.6,2437.6,6.16541358]
[1730839189866,4.88363,2438.0,2437.5,1.35650917]
[1730839190164,0.7819,2438.2,2437.8,4.10203]
[1730839190569,4.88333,2438.2,2437.8,4.10203]
[1730839191664,4.10166,2438.1,2437.5,4.90944]
[1730839191868,8.20335,2438.1,2437.6,5.003583]
[1730839192024,4.10166,2438.1,2437.6,5.003583]
[1730839192226,4.10166,2438.1,2437.6,5.003513]
[1730839192562,4.10164,2438.1,2437.7,4.10222]
[1730839192859,6.16030284,2438.4,2437.9,4.10179]
[1730839193068,4.88598,2438.4,2437.9,4.10179]
[1730839193251,4.88598,2438.4,2438.0,4.10155]
[1730839193252,0.7848,2438.4,2438.0,4.10155]
[1730839193453,4.88591,2438.4,2437.9,4.10179]
[1730839193653,4.88591,2438.4,2438.0,4.511869]
[1730839193654,0.7848,2438.4,2438.0,4.511869]
[1730839193825,4.88585,2438.4,2438.0,0.410179]
[1730839194165,4.10149,2438.2,2437.5,4.90942]
[1730839194321,4.10156,2438.1,2437.6,4.10239]
[1730839194522,4.10149,2438.2,2437.7,4.10211]
[1730839195032,8.20298,2438.2,2437.7,4.10211]
[1730839195460,9.47730284,2438.2,2437.7,4.10211]
[1730839195652,9.47733284,2438.2,2437.7,4.10211]
[1730839196357,8.20327,2438.1,2437.6,4.10238]
[1730839196546,0.04489741,2438.0,2437.6,4.10238]
[1730839196748,4.14668741,2438.0,2437.6,0.901181]
[1730839197278,0.04489741,2438.0,2437.3,0.7579]
[1730839197484,4.10206,2437.8,2437.3,8.96351]
[1730839197868,0.04453625,2437.7,2437.3,8.96351]
[1730839198192,4.10206,2437.8,2437.3,8.96351]
[1730839198193,4.10206,2437.8,2437.3,4.8607]
[1730839198344,0.04430666,2437.6,2437.3,4.8607]
[1730839198548,4.10206,2437.8,2436.7,4.86178]
[1730839198549,4.10316,2437.2,2436.7,4.86178]
[1730839198748,0.04343833,2437.1,2436.8,4.45677593]
[1730839198991,4.10273,2437.4,2436.8,4.10372]
[1730839199195,0.04318886,2437.0,2436.8,4.10372]
[1730839199346,9.47989284,2437.4,2436.8,4.10372]
[1730839199565,9.47989284,2437.4,2436.4,0.7579]
[1730839199566,0.8009,2437.1,2436.4,0.7579]
[1730839199768,0.0432196,2437.0,2436.4,1.11082437]
[1730839199995,0.0432196,2437.0,2436.6,4.10397]
[1730839200195,0.0432196,2437.0,2436.5,4.10413]
[1730839200369,4.1466196,2437.0,2436.5,4.10413]
[1730839200709,0.0432196,2437.0,2436.5,0.89665]
[1730839201010,4.10366,2436.9,2436.4,0.7579]
[1730839201465,0.04276363,2436.8,2436.4,0.83997931]
[1730839201871,4.1036,2436.9,2436.4,0.7579]
[1730839202196,0.04274675,2436.8,2436.4,0.7579]
[1730839202510,0.04274675,2436.8,2436.1,4.87612]
[1730839202815,4.10428,2436.5,2435.9,4.10516]
[1730839203012,0.8087,2436.2,2435.7,4.10546]
[1730839203346,0.8087,2436.2,2435.8,0.410546]
[1730839203516,0.04373582,2436.1,2435.8,0.410546]
[1730839203696,0.04373582,2436.1,2436.0,0.7713]
[1730839203899,6.18710284,2436.6,2435.7,0.7713]
[1730839204113,0.04249443,2436.1,2436.0,4.10497]
[1730839204414,2.08302284,2436.6,2436.0,4.18716164]
[1730839204712,2.08302284,2436.6,2435.7,4.87676]
[1730839204713,4.10454,2436.4,2435.7,4.87676]
[1730839204880,0.7642,2436.3,2435.7,5.30372]
[1730839205213,0.80703499,2436.3,2435.7,5.30372]
[1730839206081,0.80703499,2436.3,2435.9,4.10522]
[1730839206302,0.80703499,2436.3,2435.7,9.40922]
[1730839206497,0.80703499,2436.3,2435.7,5.30372]
[1730839206697,0.04283499,2436.3,2436.0,4.10494]
[1730839207018,4.90517,2436.6,2435.9,9.03015]
[1730839207310,0.04311001,2436.2,2435.9,4.92499]
[1730839207517,4.90517,2436.6,2436.0,4.10508]
[1730839207711,0.0430146,2436.1,2436.0,4.10508]
[1730839207922,9.00935,2436.6,2436.0,5.008087]
[1730839208414,0.0433955,2436.5,2436.0,5.008087]
[1730839208916,4.1476455,2436.5,2436.0,5.008087]
[1730839209115,4.1476455,2436.5,2436.0,0.903007]
[1730839209319,0.0433955,2436.5,2436.0,5.007997]
[1730839210378,0.0433955,2436.5,2436.1,4.10491]
[1730839210577,0.0433955,2436.5,2436.2,4.18684394]
[1730839210782,0.0433955,2436.5,2436.4,4.10441]
[1730839211018,4.89079,2436.9,2436.3,4.10458]
[1730839211019,0.7872,2436.9,2436.3,4.10458]
[1730839211218,0.7872,2436.9,2436.6,4.10406]
[1730839211420,0.7872,2436.9,2436.6,8.20803]
[1730839211625,0.7872,2436.9,2436.6,4.93298111]
[1730839211793,0.7872,2437.1,2436.6,4.10397]
[1730839212420,0.7872,2437.1,2436.6,8.20796]
[1730839212720,4.89044,2437.1,2436.6,4.10397]
[1730839213295,0.7872,2437.1,2436.2,4.10466]
[1730839213503,5.01,2437.2,2436.1,0.9932907]
[1730839213504,0.8235,2436.6,2436.1,0.9932907]
[1730839213825,4.10426,2436.5,2436.0,4.105]
[1730839214028,4.10443,2436.4,2435.9,0.7773]
[1730839214180,4.10426,2436.5,2435.8,8.21062]
[1730839214383,4.10426,2436.5,2435.8,4.10528]
[1730839214607,0.04297356,2436.4,2436.0,4.10508]
[1730839215221,4.14739356,2436.4,2435.9,4.10525]
[1730839215423,0.04297356,2436.4,2436.0,4.10505]
[1730839215828,0.04297356,2436.4,2435.9,4.10525]
[1730839216138,0.04297356,2436.4,2435.7,4.88279]
[1730839216139,0.8235,2436.2,2435.7,4.88289]
[1730839216344,0.8235,2436.2,2435.9,4.10523]
[1730839217861,0.8235,2436.2,2435.8,4.10542]
[1730839218374,0.04278443,2436.1,2435.8,4.10539]
[1730839218715,0.04278443,2436.1,2435.7,4.1055]
[1730839218909,0.04278443,2436.1,2435.7,5.307263]
[1730839219314,0.04278443,2436.1,2435.8,4.1053]
[1730839220024,0.04278443,2436.1,2435.7,9.412773]
[1730839220214,0.04278443,2436.1,2435.9,4.10517]
[1730839220415,0.04278443,2436.1,2435.8,4.10539]
[1730839220616,0.04278443,2436.1,2435.8,5.3466763]
[1730839221068,0.04278443,2436.1,2435.7,0.08210287]
[1730839221069,4.10577,2435.6,2435.1,4.10658]
[1730839221233,0.8242,2435.5,2435.0,4.93581]
[1730839221415,0.8242,2435.5,2435.0,9.04249]
[1730839221416,0.86588618,2435.5,2435.0,9.04249]
[1730839221742,4.97185618,2435.5,2435.0,5.840059]
[1730839221947,0.86588618,2435.5,2435.0,9.946739]
[1730839222557,0.86588618,2435.5,2435.1,4.1065]
[1730839223535,0.86588618,2435.5,2435.2,4.10627]
[1730839223752,0.86588618,2435.5,2435.1,4.1066]
[1730839224039,0.86588618,2435.5,2435.2,4.10633]
[1730839224279,0.04168618,2435.5,2435.3,4.1061]
[1730839224588,0.04168618,2435.5,2435.2,4.10633]
[1730839224878,0.0388415,2435.4,2435.2,4.10633]
[1730839225074,0.826,2435.7,2435.2,4.10633]
[1730839225233,0.826,2435.7,2435.3,4.1883572]
[1730839225439,0.03921316,2435.6,2435.3,4.1883572]
[1730839226340,0.03921316,2435.6,2435.3,4.1883772]
[1730839226578,0.03921316,2435.6,2435.4,0.7869]
[1730839226876,0.764,2436.1,2435.5,4.10593]
[1730839227038,0.03882369,2435.5,2435.4,0.7869]
[1730839227238,4.10523,2436.0,2435.4,0.7869]
[1730839227438,4.86904,2436.1,2435.4,4.893]
[1730839227439,0.03889306,2435.5,2435.4,4.893]
[1730839227676,0.764,2436.1,2435.7,4.10543]
[1730839227884,0.8032,2436.3,2435.5,0.55]
[1730839228183,0.8032,2436.3,2436.0,4.10508]
[1730839228477,0.8032,2436.3,2435.9,4.10517]
[1730839228691,0.8032,2436.3,2435.7,4.10559]
[1730839228891,0.8032,2436.3,2436.0,4.105]
[1730839229552,0.8032,2436.3,2435.9,4.10524]
[1730839230082,0.8032,2436.3,2436.0,4.10498]
[1730839230574,0.04105952,2436.2,2436.0,4.10498]
[1730839230776,0.8032,2436.3,2436.0,4.10498]
[1730839230990,0.8032,2436.3,2436.1,4.10479]
[1730839231278,0.04105952,2436.2,2436.0,4.6352939]
[1730839231453,0.04105952,2436.2,2436.0,8.7402939]
[1730839231651,0.8276,2436.8,2436.3,4.10446]
[1730839231852,0.8276,2436.8,2436.4,4.10434]
[1730839232252,0.8276,2436.8,2436.2,4.10473]
[1730839232453,0.8276,2436.8,2436.1,4.10483]
[1730839232454,4.10393,2436.7,2436.1,4.10483]
[1730839232674,0.8276,2436.8,2436.2,0.08208922]
[1730839232874,0.8276,2436.8,2436.3,8.20894]
[1730839233649,0.8276,2436.8,2436.3,4.10446]
[1730839234046,4.19137738,2436.7,2436.2,4.18682283]
[1730839234291,0.08746738,2436.7,2436.3,4.93370528]
[1730839234494,4.93134,2436.8,2436.3,4.93370528]
[1730839234678,4.93134,2436.8,2436.3,5.01578814]
[1730839234863,4.10367,2436.9,2435.8,4.89288]
[1730839234864,0.8276,2436.4,2435.8,4.89288]
[1730839235065,4.10458,2436.3,2435.9,0.35190579]
[1730839235276,4.10458,2436.3,2435.8,4.10539]
[1730839235277,4.19127826,2436.3,2435.8,4.10539]
[1730839235478,0.08669826,2436.3,2435.9,4.10518]
[1730839236255,0.08669826,2436.3,2435.8,4.10539]
[1730839236477,0.08669826,2436.3,2435.9,4.45702173]
[1730839236676,0.08669826,2436.3,2435.9,4.88264]
[1730839236903,0.08669826,2436.3,2435.9,4.10514]
[1730839237070,4.19129826,2436.3,2435.9,4.10514]
[1730839237508,0.08669826,2436.3,2435.9,4.10514]
[1730839237662,0.08669826,2436.3,2435.9,5.0450059]
[1730839238008,0.08669826,2436.3,2436.1,4.1049]
[1730839238196,0.08669826,2436.3,2435.9,5.0449959]
[1730839238582,0.08669826,2436.3,2436.0,4.10496]
[1730839238802,0.08669826,2436.3,2435.9,5.0451159]
[1730839239264,0.08669826,2436.3,2436.0,4.10501]
[1730839239905,0.08669826,2436.3,2436.1,4.10492]
[1730839240206,0.08669826,2436.3,2436.2,4.10475]
[1730839240610,0.08669826,2436.3,2436.1,5.01990059]
[1730839240782,0.08669826,2436.3,2436.1,0.91499059]
[1730839240986,0.08669826,2436.3,2435.9,4.10514]
[1730839241315,0.08669826,2436.3,2435.7,4.88298]
[1730839241477,0.08669826,2436.3,2435.8,4.1054]
[1730839241478,4.19129826,2436.3,2435.8,4.1054]
[1730839241863,0.08669826,2436.3,2435.8,4.10542]
[1730839242117,0.08669826,2436.3,2435.9,4.10525]
[1730839242467,0.08669826,2436.3,2435.9,4.10516]
[1730839242707,0.08669826,2436.3,2436.0,0.08210386]
[1730839242911,0.08669826,2436.3,2435.9,0.488266]
[1730839243123,0.08669826,2436.3,2435.8,0.35174445]
[1730839243271,4.10504,2436.1,2435.8,0.35174445]
[1730839243470,4.10504,2436.1,2435.6,4.1057]
[1730839243884,4.10509,2436.0,2435.5,4.10591]
[1730839244108,4.93528,2435.9,2435.3,4.10614]
[1730839244320,4.93528,2435.9,2435.4,4.45783611]
[1730839244485,4.93528,2435.9,2435.4,4.10601]
[1730839244698,4.93528,2435.9,2435.5,4.10592]
[1730839244699,0.8299,2435.9,2435.5,4.10592]
[1730839245083,4.93517,2435.9,2435.4,4.106]
[1730839245413,4.93517,2435.9,2435.5,4.10592]
[1730839245647,0.08461033,2435.8,2435.5,4.10592]
[1730839246507,0.08461033,2435.8,2435.6,4.10575]
[1730839246711,0.08461033,2435.8,2435.7,4.10559]
[1730839246915,1.27858416,2436.0,2435.7,4.10559]
[1730839247096,0.08535218,2435.8,2435.7,4.10559]
[1730839247915,6.14161416,2436.1,2435.7,4.10559]
[1730839248139,0.08535218,2435.8,2435.7,4.10559]
[1730839248429,1.27858416,2436.0,2435.6,4.10575]
[1730839248592,0.08525199,2435.8,2435.6,4.10575]
[1730839248922,1.27858416,2436.0,2435.6,8.21133]
[1730839249081,0.08501317,2435.7,2435.6,8.21133]
[1730839249284,1.27858416,2436.0,2435.6,4.10566]
[1730839249523,0.08511723,2435.7,2435.6,4.10566]
[1730839249739,1.27858416,2436.0,2435.6,4.10566]
[1730839249892,0.08529121,2435.7,2435.6,4.10566]
[1730839250326,1.27858416,2435.9,2435.6,4.10566]
[1730839250628,0.0853215,2435.7,2435.6,4.10566]
[1730839250830,1.27858416,2435.9,2435.6,4.10566]
[1730839251351,0.08534778,2435.8,2435.4,4.10601]
[1730839251492,1.36393194,2435.8,2435.4,8.21202]
[1730839251828,1.36393194,2435.8,2435.5,4.10591]
[1730839252225,0.08534778,2435.8,2435.7,4.10559]
[1730839252916,0.08534778,2435.8,2435.6,4.10576]
[1730839253090,1.27858416,2436.0,2435.6,4.10576]
[1730839253291,0.08490732,2435.7,2435.6,4.10576]
[1730839253527,1.27858416,2435.9,2435.6,4.10576]
[1730839253728,0.08490732,2435.7,2435.6,4.10576]
[1730839254022,1.70477888,2436.0,2435.6,4.926928]
[1730839254023,1.27858416,2436.0,2435.6,4.926928]
[1730839254227,0.08490732,2435.7,2435.6,4.10576]
[1730839254698,1.27858416,2435.9,2435.6,4.10576]
[1730839254907,0.08475339,2435.7,2435.6,4.10576]
[1730839255204,1.27858416,2435.9,2435.6,4.10576]
[1730839255398,0.08477666,2435.7,2435.6,4.10576]
[1730839256074,0.08489008,2435.7,2435.6,4.10576]
[1730839256530,0.0846764,2435.7,2435.6,4.10576]
[1730839256824,1.27858416,2435.9,2435.7,4.10556]
[1730839257127,1.27858416,2435.9,2435.5,4.10576]
[1730839257290,1.27858416,2435.9,2435.6,4.10565]
[1730839257490,1.27858416,2435.9,2435.7,4.10557]
[1730839257685,1.27858416,2435.8,2435.7,4.10557]
[1730839257899,1.27858416,2435.8,2435.6,4.10565]
[1730839258323,1.27858416,2435.8,2435.6,4.10562]
[1730839258725,1.27858416,2435.8,2435.6,4.10568]
[1730839259909,1.27858416,2435.8,2435.4,4.10596]
[1730839259910,1.27858416,2435.7,2435.4,8.21197]
[1730839260113,1.27858416,2435.7,2435.5,4.10592]
[1730839260420,0.08233773,2435.6,2435.5,4.10592]
[1730839260618,0.08233773,2435.6,2435.4,4.10596]
[1730839260619,0.08233773,2435.6,2435.4,4.10602]
[1730839260836,1.36092189,2435.6,2435.4,4.10602]
[1730839261021,1.36092189,2435.6,2435.5,4.10593]
[1730839261220,0.08233773,2435.6,2435.5,4.10593]
[1730839262253,0.08233773,2435.6,2435.5,4.53317347]
[1730839262754,1.27858416,2435.8,2435.7,4.10559]
[1730839262904,1.27858416,2435.9,2435.8,4.10542]
[1730839263455,1.70477888,2436.1,2436.0,4.10509]
[1730839263456,1.27858416,2436.1,2436.0,4.10509]
[1730839263608,1.27858416,2436.2,2436.1,4.10492]
[1730839263806,1.27858416,2436.3,2436.1,4.10492]
[1730839264034,0.08312766,2436.2,2436.1,4.10492]
[1730839264440,1.27858416,2436.3,2436.2,4.10475]
[1730839264610,1.27858416,2436.3,2435.9,4.9043]
[1730839264805,1.27858416,2436.3,2436.0,4.10508]
[1730839265215,1.27858416,2436.2,2436.0,4.10508]
[1730839265416,1.27858416,2436.3,2436.1,4.10483]
[1730839265749,1.27858416,2436.3,2436.2,4.10475]
[1730839265959,1.70477888,2436.4,2436.1,5.00581]
[1730839265960,1.27858416,2436.4,2436.1,5.00581]
[1730839266246,1.27858416,2436.3,2435.9,4.90425]
[1730839266456,0.8022,2436.2,2435.8,4.10527]
[1730839266758,5.38353416,2436.1,2435.5,4.91533]
[1730839266926,2.08078416,2435.9,2435.4,4.10609]
[1730839267109,6.18612416,2435.9,2435.3,4.91565]
[1730839267303,1.27858416,2435.8,2435.4,4.106]
[1730839267504,0.08108514,2435.8,2435.5,4.10591]
[1730839267816,1.3596693,2435.8,2435.5,4.10591]
[1730839268323,1.3596693,2435.8,2435.5,8.21175]
[1730839268546,1.3596693,2435.8,2435.7,4.10559]
[1730839268547,0.08108514,2435.8,2435.7,4.10559]
[1730839269055,0.08108514,2435.8,2435.7,4.91509]
[1730839269355,5.13488527,2436.2,2436.1,4.91442]
[1730839269520,1.27858416,2436.2,2436.0,4.10509]
[1730839269855,1.27858416,2436.2,2436.0,9.112579]
[1730839270064,1.27858416,2436.2,2436.0,5.007489]
[1730839270547,1.27858416,2436.2,2436.0,4.10498]
[1730839271255,0.08251979,2436.1,2436.0,4.10498]
[1730839271959,1.36110395,2436.1,2436.0,4.10498]
[1730839272163,0.08251979,2436.1,2436.0,4.10498]
[1730839273357,1.27858416,2436.2,2435.9,4.10525]
[1730839273730,1.27858416,2436.2,2436.0,4.10509]
[1730839273929,5.38335416,2436.2,2435.8,0.8136]
[1730839274130,5.38335416,2436.2,2435.5,4.85643]
[1730839274131,1.27858416,2436.0,2435.5,4.85643]
[1730839274468,1.27858416,2435.9,2435.6,4.10574]
[1730839274616,1.27858416,2435.9,2435.7,4.10547]
[1730839274617,0.08274927,2435.9,2435.7,4.10547]
[1730839274836,1.36133343,2435.9,2435.8,4.10542]
[1730839275054,0.08274927,2435.9,2435.8,4.926509]
[1730839276078,0.08274927,2435.9,2435.8,5.00861016]
[1730839276222,1.27858416,2436.1,2435.9,4.10515]